[Event "Titled Tuesday Blitz February 28 Late 2023"]
[White "Fernandez Hernandez, Gerardo"]
[Black "Li, Hui"]
[WhiteFideId "2207400"]
[BlackFideId "15400310"]
[WhiteElo "2198"]
[BlackElo "1967"]
[Result "1-0"]
[Round "04"]
[TimeControl "180+2"]
[Date "2023.02.28"]
[WhiteClock "0:00:31"]
[BlackClock "0:00:49"]

1. e4 {[%clk 0:03:00]}  e5 {[%clk 0:02:56]} 2. Nf3 {[%clk 0:03:00]}  Nf6 {[%clk 0:02:57]} 3. Nc3 {[%clk 0:02:59]}  Nc6 {[%clk 0:02:56]} 4. d4 {[%clk 0:02:56]}  exd4 {[%clk 0:02:57]} 5. Nxd4 {[%clk 0:02:56]}  Bb4 {[%clk 0:02:57]} 6. Nxc6 {[%clk 0:02:55]}  bxc6 {[%clk 0:02:58]} 7. Bd3 {[%clk 0:02:55]}  O-O {[%clk 0:02:59]} 8. O-O {[%clk 0:02:54]}  d5 {[%clk 0:02:59]} 9. exd5 {[%clk 0:02:55]}  cxd5 {[%clk 0:03:00]} 10. h3 {[%clk 0:02:52]}  c6 {[%clk 0:03:00]} 11. Qf3 {[%clk 0:02:50]}  Bd6 {[%clk 0:02:59]} 12. Bf4 {[%clk 0:02:42]}  Rb8 {[%clk 0:02:56]} 13. b3 {[%clk 0:02:35]}  Rb4 {[%clk 0:02:56]} 14. Ne2 {[%clk 0:02:27]}  Re8 {[%clk 0:02:50]} 15. Rad1 {[%clk 0:02:23]}  h6 {[%clk 0:02:42]} 16. c4 {[%clk 0:02:19]}  Be6 {[%clk 0:02:34]} 17. Nd4 {[%clk 0:01:43]}  c5 {[%clk 0:02:16]} 18. Nc6 {[%clk 0:01:29]}  Qc7 {[%clk 0:02:02]} 19. Nxb4 {[%clk 0:01:19]}  cxb4 {[%clk 0:01:56]} 20. Bxd6 {[%clk 0:01:12]}  Qxd6 {[%clk 0:01:57]} 21. Rfe1 {[%clk 0:01:06]}  d4 {[%clk 0:01:48]} 22. Bf5 {[%clk 0:01:00]}  a5 {[%clk 0:01:23]} 23. Qd3 {[%clk 0:00:49]}  Bxf5 {[%clk 0:01:18]} 24. Rxe8+ {[%clk 0:00:50]}  Nxe8 {[%clk 0:01:18]} 25. Qxf5 {[%clk 0:00:49]}  Nf6 {[%clk 0:01:10]} 26. Qd3 {[%clk 0:00:45]}  Qe5 {[%clk 0:01:01]} 27. Qxd4 {[%clk 0:00:44]}  Qe2 {[%clk 0:01:02]} 28. Qd8+ {[%clk 0:00:43]}  Kh7 {[%clk 0:01:02]} 29. Qd3+ {[%clk 0:00:42]}  Qxd3 {[%clk 0:01:00]} 30. Rxd3 {[%clk 0:00:43]}  Ne4 {[%clk 0:01:00]} 31. Rd5 {[%clk 0:00:40]}  g5 {[%clk 0:00:57]} 32. Rxa5 {[%clk 0:00:38]}  Nc3 {[%clk 0:00:55]} 33. c5 {[%clk 0:00:35]}  Nd5 {[%clk 0:00:54]} 34. c6 {[%clk 0:00:35]}  Ne7 {[%clk 0:00:51]} 35. c7 {[%clk 0:00:34]}  Kg6 {[%clk 0:00:51]} 36. Ra8 {[%clk 0:00:30]}  Kf5 {[%clk 0:00:49]} 37. c8=Q+ {[%clk 0:00:30]}  Nxc8 {[%clk 0:00:49]} 38. Rxc8 {[%clk 0:00:31]} 1-0


[Site "https://www.chess.com"]

[Event "Titled Tuesday Blitz February 28 Late 2023"]
[White "Gamage, Wanshini Vidusama"]
[Black "Rangel, Daniel"]
[WhiteFideId "9953752"]
[BlackFideId "2124475"]
[WhiteElo "2193"]
[BlackElo "2256"]
[Result "0-1"]
[Round "04"]
[TimeControl "180+2"]
[Date "2023.02.28"]
[WhiteClock "0:00:41"]
[BlackClock "0:00:31"]

1. e4 {[%clk 0:03:00]}  c6 {[%clk 0:02:57]} 2. d4 {[%clk 0:03:01]}  d5 {[%clk 0:02:58]} 3. e5 {[%clk 0:03:01]}  c5 {[%clk 0:02:56]} 4. Nf3 {[%clk 0:03:02]}  cxd4 {[%clk 0:02:56]} 5. Qxd4 {[%clk 0:03:02]}  Nc6 {[%clk 0:02:55]} 6. Qf4 {[%clk 0:03:03]}  e6 {[%clk 0:02:54]} 7. Bd3 {[%clk 0:03:01]}  Nge7 {[%clk 0:02:53]} 8. Bd2 {[%clk 0:02:56]}  Ng6 {[%clk 0:02:52]} 9. Qg3 {[%clk 0:02:56]}  Qb6 {[%clk 0:02:48]} 10. b3 {[%clk 0:02:49]}  Nd4 {[%clk 0:02:40]} 11. Nxd4 {[%clk 0:02:28]}  Qxd4 {[%clk 0:02:39]} 12. Bc3 {[%clk 0:02:29]}  Bb4 {[%clk 0:02:33]} 13. Bxg6 {[%clk 0:02:07]}  hxg6 {[%clk 0:02:25]} 14. O-O {[%clk 0:02:07]}  Bxc3 {[%clk 0:02:21]} 15. Qxc3 {[%clk 0:02:07]}  Qxc3 {[%clk 0:02:20]} 16. Nxc3 {[%clk 0:02:08]}  Bd7 {[%clk 0:02:20]} 17. a4 {[%clk 0:02:04]}  a6 {[%clk 0:02:14]} 18. Ne2 {[%clk 0:02:04]}  Rb8 {[%clk 0:02:11]} 19. Nd4 {[%clk 0:02:03]}  Rc8 {[%clk 0:02:11]} 20. f4 {[%clk 0:01:49]}  Ke7 {[%clk 0:02:09]} 21. Rac1 {[%clk 0:01:46]}  Rc3 {[%clk 0:02:03]} 22. Rf3 {[%clk 0:01:45]}  Rhc8 {[%clk 0:02:00]} 23. Rxc3 {[%clk 0:01:45]}  Rxc3 {[%clk 0:02:01]} 24. Kf2 {[%clk 0:01:45]}  Rc8 {[%clk 0:01:55]} 25. Ke3 {[%clk 0:01:41]}  Rh8 {[%clk 0:01:53]} 26. h3 {[%clk 0:01:40]}  Rf8 {[%clk 0:01:52]} 27. c4 {[%clk 0:01:38]}  Rc8 {[%clk 0:01:50]} 28. Kd3 {[%clk 0:01:32]}  f6 {[%clk 0:01:43]} 29. c5 {[%clk 0:01:22]}  fxe5 {[%clk 0:01:35]} 30. fxe5 {[%clk 0:01:23]}  Rf8 {[%clk 0:01:34]} 31. c6 {[%clk 0:01:16]}  bxc6 {[%clk 0:01:13]} 32. Nxc6+ {[%clk 0:01:17]}  Ke8 {[%clk 0:01:12]} 33. Nb8 {[%clk 0:01:15]}  Kd8 {[%clk 0:01:03]} 34. Nxa6 {[%clk 0:01:12]}  Rf2 {[%clk 0:01:00]} 35. Rc2 {[%clk 0:01:10]}  Rf1 {[%clk 0:00:56]} 36. Nc5 {[%clk 0:01:09]}  Re1 {[%clk 0:00:53]} 37. Nxd7 {[%clk 0:01:00]}  Kxd7 {[%clk 0:00:51]} 38. Re2 {[%clk 0:01:00]}  Rb1 {[%clk 0:00:49]} 39. Kc3 {[%clk 0:01:00]}  Kc6 {[%clk 0:00:45]} 40. Kb4 {[%clk 0:00:58]}  Rc1 {[%clk 0:00:42]} 41. a5 {[%clk 0:00:57]}  d4 {[%clk 0:00:41]} 42. Ka4 {[%clk 0:00:53]}  Kd5 {[%clk 0:00:40]} 43. a6 {[%clk 0:00:51]}  d3 {[%clk 0:00:37]} 44. Rd2 {[%clk 0:00:51]}  Kd4 {[%clk 0:00:37]} 45. Kb5 {[%clk 0:00:47]}  Kc3 {[%clk 0:00:36]} 46. Rxd3+ {[%clk 0:00:46]}  Kxd3 {[%clk 0:00:36]} 47. b4 {[%clk 0:00:43]}  Kc3 {[%clk 0:00:32]} 48. a7 {[%clk 0:00:40]}  Ra1 {[%clk 0:00:31]} 49. Kb6 {[%clk 0:00:41]}  Kxb4 {[%clk 0:00:31]} 0-1


[Site "https://www.chess.com"]

[Event "Titled Tuesday Blitz February 28 Late 2023"]
[White "Gerbelli Neto, Eduardo"]
[Black "rikchessmx"]
[WhiteFideId "2103281"]
[WhiteElo "2178"]
[BlackElo "2169"]
[Result "1-0"]
[Round "04"]
[TimeControl "180+2"]
[Date "2023.02.28"]
[WhiteClock "0:01:12"]
[BlackClock "0:00:31"]

1. e4 {[%clk 0:03:00]}  c5 {[%clk 0:03:00]} 2. Nc3 {[%clk 0:03:00]}  e6 {[%clk 0:03:01]} 3. f4 {[%clk 0:03:01]}  a6 {[%clk 0:03:01]} 4. Nf3 {[%clk 0:03:01]}  Qc7 {[%clk 0:03:02]} 5. g3 {[%clk 0:03:01]}  Ne7 {[%clk 0:03:00]} 6. Bg2 {[%clk 0:02:57]}  d6 {[%clk 0:03:00]} 7. d3 {[%clk 0:02:57]}  g6 {[%clk 0:03:00]} 8. O-O {[%clk 0:02:56]}  Bg7 {[%clk 0:03:01]} 9. Qe1 {[%clk 0:02:50]}  Nbc6 {[%clk 0:03:00]} 10. g4 {[%clk 0:02:49]}  Nb4 {[%clk 0:03:00]} 11. Qf2 {[%clk 0:02:48]}  Rb8 {[%clk 0:02:48]} 12. a3 {[%clk 0:02:49]}  Nbc6 {[%clk 0:02:48]} 13. f5 {[%clk 0:02:47]}  exf5 {[%clk 0:02:46]} 14. gxf5 {[%clk 0:02:47]}  gxf5 {[%clk 0:02:45]} 15. Nd5 {[%clk 0:02:45]}  Nxd5 {[%clk 0:02:36]} 16. exd5 {[%clk 0:02:46]}  Ne7 {[%clk 0:02:36]} 17. c4 {[%clk 0:02:23]}  O-O {[%clk 0:02:32]} 18. Qh4 {[%clk 0:02:21]}  Ng6 {[%clk 0:02:31]} 19. Qh5 {[%clk 0:02:21]}  f6 {[%clk 0:02:28]} 20. Nh4 {[%clk 0:02:01]}  Qf7 {[%clk 0:02:20]} 21. Nxf5 {[%clk 0:01:58]}  Bxf5 {[%clk 0:02:20]} 22. Qxf5 {[%clk 0:01:57]}  b5 {[%clk 0:02:11]} 23. Be4 {[%clk 0:01:55]}  Rfe8 {[%clk 0:02:10]} 24. b3 {[%clk 0:01:43]}  bxc4 {[%clk 0:02:07]} 25. bxc4 {[%clk 0:01:43]}  Re5 {[%clk 0:02:04]} 26. Qh3 {[%clk 0:01:34]}  a5 {[%clk 0:01:02]} 27. Bf5 {[%clk 0:01:34]}  Rb3 {[%clk 0:00:52]} 28. Be6 {[%clk 0:01:33]}  Rxe6 {[%clk 0:00:51]} 29. dxe6 {[%clk 0:01:33]}  Qe7 {[%clk 0:00:51]} 30. Bf4 {[%clk 0:01:25]}  f5 {[%clk 0:00:45]} 31. Rae1 {[%clk 0:01:22]}  Nxf4 {[%clk 0:00:38]} 32. Rxf4 {[%clk 0:01:18]}  Qg5+ {[%clk 0:00:38]} 33. Qg3 {[%clk 0:01:18]}  Qxg3+ {[%clk 0:00:34]} 34. hxg3 {[%clk 0:01:19]}  Bd4+ {[%clk 0:00:32]} 35. Rxd4 {[%clk 0:01:12]}  cxd4 {[%clk 0:00:31]} 36. e7 {[%clk 0:01:12]} 1-0


[Site "https://www.chess.com"]

[Event "Titled Tuesday Blitz February 28 Late 2023"]
[White "Tsukerman, Julia"]
[Black "Kovacs, Klara"]
[WhiteFideId "2621649"]
[BlackFideId "733210"]
[WhiteElo "1667"]
[BlackElo "2179"]
[Result "1/2-1/2"]
[Round "04"]
[TimeControl "180+2"]
[Date "2023.02.28"]
[WhiteClock "0:00:11"]
[BlackClock "0:00:10"]

1. e4 {[%clk 0:03:00]}  e6 {[%clk 0:02:55]} 2. d4 {[%clk 0:03:00]}  d5 {[%clk 0:02:53]} 3. Nd2 {[%clk 0:02:51]}  Be7 {[%clk 0:02:52]} 4. c3 {[%clk 0:02:43]}  c5 {[%clk 0:02:50]} 5. dxc5 {[%clk 0:02:34]}  Nf6 {[%clk 0:02:13]} 6. exd5 {[%clk 0:02:21]}  Qxd5 {[%clk 0:02:11]} 7. Ngf3 {[%clk 0:02:13]}  Bxc5 {[%clk 0:02:09]} 8. Bc4 {[%clk 0:02:07]}  Qd8 {[%clk 0:02:09]} 9. O-O {[%clk 0:02:04]}  O-O {[%clk 0:02:09]} 10. Qc2 {[%clk 0:02:00]}  Nc6 {[%clk 0:02:08]} 11. Ne4 {[%clk 0:01:57]}  Nxe4 {[%clk 0:02:02]} 12. Qxe4 {[%clk 0:01:57]}  Kh8 {[%clk 0:01:54]} 13. Be3 {[%clk 0:01:56]}  f5 {[%clk 0:01:52]} 14. Qc2 {[%clk 0:01:26]}  Bxe3 {[%clk 0:01:47]} 15. fxe3 {[%clk 0:01:26]}  e5 {[%clk 0:01:47]} 16. Rad1 {[%clk 0:01:22]}  Qb6 {[%clk 0:01:36]} 17. Qf2 {[%clk 0:01:22]}  e4 {[%clk 0:01:30]} 18. Nd4 {[%clk 0:01:20]}  Ne5 {[%clk 0:01:29]} 19. Bb3 {[%clk 0:01:11]}  Nd3 {[%clk 0:01:29]} 20. Qc2 {[%clk 0:01:10]}  Bd7 {[%clk 0:01:24]} 21. Rd2 {[%clk 0:01:02]}  Rac8 {[%clk 0:01:23]} 22. Qd1 {[%clk 0:00:55]}  Qh6 {[%clk 0:01:10]} 23. Qe2 {[%clk 0:00:53]}  Qg5 {[%clk 0:00:59]} 24. Kh1 {[%clk 0:00:52]}  Rcd8 {[%clk 0:00:55]} 25. Bc4 {[%clk 0:00:51]}  Ne5 {[%clk 0:00:55]} 26. Bb3 {[%clk 0:00:49]}  Ng4 {[%clk 0:00:49]} 27. Nc2 {[%clk 0:00:40]}  Qh4 {[%clk 0:00:46]} 28. g3 {[%clk 0:00:36]}  Qh3 {[%clk 0:00:44]} 29. Qg2 {[%clk 0:00:24]}  Qxg2+ {[%clk 0:00:42]} 30. Kxg2 {[%clk 0:00:24]}  Bb5 {[%clk 0:00:38]} 31. Rfd1 {[%clk 0:00:24]}  Bd3 {[%clk 0:00:37]} 32. h3 {[%clk 0:00:17]}  Ne5 {[%clk 0:00:36]} 33. Nd4 {[%clk 0:00:16]}  Rd6 {[%clk 0:00:30]} 34. Bc2 {[%clk 0:00:15]}  Bxc2 {[%clk 0:00:29]} 35. Rxc2 {[%clk 0:00:15]}  g6 {[%clk 0:00:29]} 36. Kf2 {[%clk 0:00:15]}  Nd3+ {[%clk 0:00:28]} 37. Ke2 {[%clk 0:00:15]}  Rb6 {[%clk 0:00:28]} 38. b3 {[%clk 0:00:15]}  Rc8 {[%clk 0:00:28]} 39. c4 {[%clk 0:00:15]}  Kg7 {[%clk 0:00:27]} 40. Rcd2 {[%clk 0:00:16]}  Kf6 {[%clk 0:00:27]} 41. Nb5 {[%clk 0:00:16]}  a6 {[%clk 0:00:25]} 42. Nd4 {[%clk 0:00:16]}  Ke5 {[%clk 0:00:25]} 43. Rf1 {[%clk 0:00:16]}  h5 {[%clk 0:00:25]} 44. Rg1 {[%clk 0:00:16]}  Rd6 {[%clk 0:00:19]} 45. Nc2 {[%clk 0:00:16]}  Rcd8 {[%clk 0:00:18]} 46. Rgd1 {[%clk 0:00:16]}  Nc1+ {[%clk 0:00:16]} 47. Ke1 {[%clk 0:00:16]}  Rxd2 {[%clk 0:00:15]} 48. Rxd2 {[%clk 0:00:16]}  Rxd2 {[%clk 0:00:15]} 49. Kxd2 {[%clk 0:00:17]}  Nxa2 {[%clk 0:00:15]} 50. Nd4 {[%clk 0:00:16]}  Nb4 {[%clk 0:00:15]} 51. Kc3 {[%clk 0:00:16]}  Nd3 {[%clk 0:00:15]} 52. Ne2 {[%clk 0:00:17]}  g5 {[%clk 0:00:15]} 53. Ng1 {[%clk 0:00:16]}  h4 {[%clk 0:00:15]} 54. gxh4 {[%clk 0:00:16]}  gxh4 {[%clk 0:00:16]} 55. Ne2 {[%clk 0:00:16]}  f4 {[%clk 0:00:16]} 56. exf4+ {[%clk 0:00:16]}  Nxf4 {[%clk 0:00:17]} 57. Ng1 {[%clk 0:00:16]}  e3 {[%clk 0:00:16]} 58. Kc2 {[%clk 0:00:15]}  Ke4 {[%clk 0:00:16]} 59. Kd1 {[%clk 0:00:15]}  b6 {[%clk 0:00:16]} 60. Ke1 {[%clk 0:00:16]}  Kd3 {[%clk 0:00:16]} 61. Nf3 {[%clk 0:00:15]}  e2 {[%clk 0:00:14]} 62. Ne5+ {[%clk 0:00:14]}  Ke3 {[%clk 0:00:13]} 63. Ng4+ {[%clk 0:00:13]}  Kf3 {[%clk 0:00:14]} 64. Ne5+ {[%clk 0:00:13]}  Kg3 {[%clk 0:00:14]} 65. b4 {[%clk 0:00:10]}  Kxh3 {[%clk 0:00:13]} 66. c5 {[%clk 0:00:11]}  bxc5 {[%clk 0:00:10]} 67. bxc5 {[%clk 0:00:12]}  Kg3 {[%clk 0:00:09]} 68. c6 {[%clk 0:00:12]}  Nd5 {[%clk 0:00:09]} 69. Kxe2 {[%clk 0:00:10]}  h3 {[%clk 0:00:10]} 70. Nf3 {[%clk 0:00:09]}  h2 {[%clk 0:00:10]} 71. Nxh2 {[%clk 0:00:09]}  Kxh2 {[%clk 0:00:10]} 72. Kd3 {[%clk 0:00:10]}  Kg3 {[%clk 0:00:10]} 73. Kc4 {[%clk 0:00:10]}  Nc7 {[%clk 0:00:10]} 74. Kc5 {[%clk 0:00:10]}  a5 {[%clk 0:00:10]} 75. Kb6 {[%clk 0:00:09]}  a4 {[%clk 0:00:10]} 76. Kxc7 {[%clk 0:00:08]}  a3 {[%clk 0:00:11]} 77. Kd7 {[%clk 0:00:08]}  a2 {[%clk 0:00:11]} 78. c7 {[%clk 0:00:08]}  a1=Q {[%clk 0:00:12]} 79. Kc8 {[%clk 0:00:09]}  Qa8+ {[%clk 0:00:11]} 80. Kd7 {[%clk 0:00:09]}  Qd5+ {[%clk 0:00:11]} 81. Kc8 {[%clk 0:00:09]}  Kf4 {[%clk 0:00:11]} 82. Kb8 {[%clk 0:00:09]}  Qb5+ {[%clk 0:00:11]} 83. Ka8 {[%clk 0:00:08]}  Qa6+ {[%clk 0:00:10]} 84. Kb8 {[%clk 0:00:09]}  Qb6+ {[%clk 0:00:11]} 85. Ka8 {[%clk 0:00:09]}  Qc6+ {[%clk 0:00:09]} 86. Kb8 {[%clk 0:00:09]}  Qb5+ {[%clk 0:00:08]} 87. Ka8 {[%clk 0:00:09]}  Qa5+ {[%clk 0:00:09]} 88. Kb8 {[%clk 0:00:10]}  Qb6+ {[%clk 0:00:09]} 89. Ka8 {[%clk 0:00:10]}  Qa6+ {[%clk 0:00:09]} 90. Kb8 {[%clk 0:00:11]}  Qb6+ {[%clk 0:00:10]} 1/2-1/2


[Site "https://www.chess.com"]

[Event "Titled Tuesday Blitz February 28 Late 2023"]
[White "Levine, David"]
[Black "Ward, Ieuan C"]
[WhiteFideId "2011611"]
[BlackFideId "406627"]
[WhiteElo "2117"]
[BlackElo "2316"]
[Result "0-1"]
[Round "04"]
[TimeControl "180+2"]
[Date "2023.02.28"]
[WhiteClock "0:00:41"]
[BlackClock "0:01:09"]

1. d4 {[%clk 0:02:59]}  e5 {[%clk 0:02:59]} 2. dxe5 {[%clk 0:02:59]}  Nc6 {[%clk 0:03:00]} 3. Nf3 {[%clk 0:02:59]}  Qe7 {[%clk 0:03:00]} 4. Nc3 {[%clk 0:02:58]}  Nxe5 {[%clk 0:03:00]} 5. Nxe5 {[%clk 0:02:58]}  Qxe5 {[%clk 0:03:00]} 6. f4 {[%clk 0:02:59]}  Qa5 {[%clk 0:02:56]} 7. Bd2 {[%clk 0:02:58]}  c6 {[%clk 0:02:51]} 8. e4 {[%clk 0:02:57]}  d6 {[%clk 0:02:47]} 9. Bd3 {[%clk 0:02:56]}  Qb6 {[%clk 0:02:43]} 10. Rb1 {[%clk 0:02:49]}  Nf6 {[%clk 0:02:42]} 11. Qe2 {[%clk 0:02:44]}  Bg4 {[%clk 0:02:39]} 12. Qe3 {[%clk 0:02:43]}  Qxe3+ {[%clk 0:02:37]} 13. Bxe3 {[%clk 0:02:43]}  d5 {[%clk 0:02:36]} 14. exd5 {[%clk 0:02:35]}  Nxd5 {[%clk 0:02:35]} 15. Nxd5 {[%clk 0:02:35]}  cxd5 {[%clk 0:02:35]} 16. Bd4 {[%clk 0:02:29]}  f6 {[%clk 0:02:31]} 17. O-O {[%clk 0:02:26]}  Bd6 {[%clk 0:02:30]} 18. Rfe1+ {[%clk 0:02:19]}  Kf7 {[%clk 0:02:30]} 19. g3 {[%clk 0:02:17]}  h5 {[%clk 0:02:28]} 20. Kg2 {[%clk 0:02:00]}  h4 {[%clk 0:02:20]} 21. h3 {[%clk 0:01:34]}  Bd7 {[%clk 0:02:17]} 22. g4 {[%clk 0:01:22]}  Bxf4 {[%clk 0:02:14]} 23. Rbd1 {[%clk 0:01:17]}  b6 {[%clk 0:02:08]} 24. c3 {[%clk 0:01:15]}  Rae8 {[%clk 0:02:05]} 25. Bc2 {[%clk 0:01:15]}  Rxe1 {[%clk 0:02:03]} 26. Rxe1 {[%clk 0:01:15]}  Re8 {[%clk 0:02:04]} 27. Rxe8 {[%clk 0:01:12]}  Bxe8 {[%clk 0:02:00]} 28. b4 {[%clk 0:01:09]}  Ke6 {[%clk 0:01:53]} 29. a4 {[%clk 0:01:06]}  Be5 {[%clk 0:01:50]} 30. Bf2 {[%clk 0:00:56]}  Bxc3 {[%clk 0:01:48]} 31. a5 {[%clk 0:00:55]}  bxa5 {[%clk 0:01:43]} 32. bxa5 {[%clk 0:00:54]}  Bxa5 {[%clk 0:01:41]} 33. Bxh4 {[%clk 0:00:53]}  Bc3 {[%clk 0:01:36]} 34. Bf5+ {[%clk 0:00:52]}  Kd6 {[%clk 0:01:31]} 35. Bg3+ {[%clk 0:00:51]}  Kc5 {[%clk 0:01:30]} 36. Bb8 {[%clk 0:00:48]}  a5 {[%clk 0:01:29]} 37. Kf2 {[%clk 0:00:48]}  Bb5 {[%clk 0:01:24]} 38. Bc7 {[%clk 0:00:44]}  a4 {[%clk 0:01:24]} 39. Bd8 {[%clk 0:00:44]}  Kd6 {[%clk 0:01:16]} 40. g5 {[%clk 0:00:42]}  a3 {[%clk 0:01:14]} 41. gxf6 {[%clk 0:00:41]}  Bxf6 {[%clk 0:01:09]} 0-1


[Site "https://www.chess.com"]

[Event "Titled Tuesday Blitz February 28 Late 2023"]
[White "Melikhov, Evgeny V."]
[Black "Torres Dominguez, David"]
[WhiteFideId "4122046"]
[BlackFideId "2220857"]
[WhiteElo "2158"]
[BlackElo "1999"]
[Result "0-1"]
[Round "04"]
[TimeControl "180+2"]
[Date "2023.02.28"]
[WhiteClock "0:00:02"]
[BlackClock "0:00:58"]

1. d4 {[%clk 0:03:00]}  e5 {[%clk 0:02:59]} 2. dxe5 {[%clk 0:03:00]}  d6 {[%clk 0:02:58]} 3. exd6 {[%clk 0:02:59]}  Bxd6 {[%clk 0:02:58]} 4. Nf3 {[%clk 0:02:58]}  Bg4 {[%clk 0:02:58]} 5. e3 {[%clk 0:02:58]}  Nc6 {[%clk 0:02:56]} 6. Be2 {[%clk 0:02:57]}  Qe7 {[%clk 0:02:55]} 7. Nbd2 {[%clk 0:02:56]}  O-O-O {[%clk 0:02:54]} 8. c3 {[%clk 0:02:56]}  Nf6 {[%clk 0:02:47]} 9. Qc2 {[%clk 0:02:55]}  Ne5 {[%clk 0:02:33]} 10. h3 {[%clk 0:02:29]}  Nxf3+ {[%clk 0:02:26]} 11. Nxf3 {[%clk 0:02:21]}  Bh5 {[%clk 0:02:15]} 12. Nd4 {[%clk 0:02:13]}  Bg6 {[%clk 0:02:12]} 13. Bd3 {[%clk 0:02:13]}  Bxd3 {[%clk 0:02:07]} 14. Qxd3 {[%clk 0:02:11]}  Ne4 {[%clk 0:02:04]} 15. Qe2 {[%clk 0:01:49]}  Rhe8 {[%clk 0:01:58]} 16. Nf5 {[%clk 0:01:43]}  Qf6 {[%clk 0:01:51]} 17. Nxd6+ {[%clk 0:01:42]}  Rxd6 {[%clk 0:01:50]} 18. O-O {[%clk 0:01:41]}  Qe5 {[%clk 0:01:45]} 19. Qf3 {[%clk 0:01:28]}  f5 {[%clk 0:01:43]} 20. Qf4 {[%clk 0:01:17]}  Qe6 {[%clk 0:01:44]} 21. Qh4 {[%clk 0:00:55]}  g5 {[%clk 0:01:42]} 22. Qh5 {[%clk 0:00:49]}  g4 {[%clk 0:01:33]} 23. b3 {[%clk 0:00:46]}  gxh3 {[%clk 0:01:26]} 24. Qxh3 {[%clk 0:00:44]}  Rg8 {[%clk 0:01:23]} 25. Ba3 {[%clk 0:00:42]}  Ng5 {[%clk 0:01:17]} 26. Qg3 {[%clk 0:00:36]}  Rdd8 {[%clk 0:01:12]} 27. Rad1 {[%clk 0:00:28]}  Rde8 {[%clk 0:01:07]} 28. f4 {[%clk 0:00:16]}  Ne4 {[%clk 0:01:04]} 29. Qh3 {[%clk 0:00:12]}  Rg6 {[%clk 0:01:02]} 30. Rf3 {[%clk 0:00:07]}  Reg8 {[%clk 0:01:01]} 31. Kh1 {[%clk 0:00:04]}  Rh6 {[%clk 0:01:00]} 32. Bb4 {[%clk 0:00:01]}  Rxh3+ {[%clk 0:00:58]} 33. Rxh3 {[%clk 0:00:02]}  Nf2+ {[%clk 0:00:58]} 0-1


[Site "https://www.chess.com"]

[Event "Titled Tuesday Blitz February 28 Late 2023"]
[White "Manu_ChessExcelsior"]
[Black "Prieto Aranguren, Alain"]
[BlackFideId "2268906"]
[WhiteElo "1964"]
[BlackElo "2209"]
[Result "1-0"]
[Round "04"]
[TimeControl "180+2"]
[Date "2023.02.28"]
[WhiteClock "0:00:05"]
[BlackClock "0:00:01"]

1. e4 {[%clk 0:03:00]}  c6 {[%clk 0:02:58]} 2. d3 {[%clk 0:02:54]}  d5 {[%clk 0:02:58]} 3. Nd2 {[%clk 0:02:54]}  g6 {[%clk 0:02:58]} 4. Ngf3 {[%clk 0:02:51]}  Bg7 {[%clk 0:02:58]} 5. Be2 {[%clk 0:02:50]}  e5 {[%clk 0:02:57]} 6. O-O {[%clk 0:02:45]}  Ne7 {[%clk 0:02:56]} 7. Re1 {[%clk 0:02:42]}  d4 {[%clk 0:02:56]} 8. a4 {[%clk 0:02:41]}  O-O {[%clk 0:02:55]} 9. a5 {[%clk 0:02:41]}  c5 {[%clk 0:02:54]} 10. Nc4 {[%clk 0:02:40]}  Nbc6 {[%clk 0:02:54]} 11. b3 {[%clk 0:02:39]}  h6 {[%clk 0:02:54]} 12. Bd2 {[%clk 0:02:38]}  Be6 {[%clk 0:02:52]} 13. Qc1 {[%clk 0:02:38]}  Kh7 {[%clk 0:02:51]} 14. h3 {[%clk 0:02:37]}  Qc7 {[%clk 0:02:40]} 15. Nh2 {[%clk 0:02:36]}  h5 {[%clk 0:02:36]} 16. Nf3 {[%clk 0:02:36]}  f6 {[%clk 0:02:33]} 17. Nh4 {[%clk 0:02:33]}  b5 {[%clk 0:02:27]} 18. axb6 {[%clk 0:02:33]}  axb6 {[%clk 0:02:24]} 19. Na3 {[%clk 0:02:07]}  Nb4 {[%clk 0:02:09]} 20. Qb2 {[%clk 0:01:47]}  g5 {[%clk 0:02:01]} 21. Nf5 {[%clk 0:01:40]}  Bxf5 {[%clk 0:01:45]} 22. exf5 {[%clk 0:01:41]}  h4 {[%clk 0:01:39]} 23. Bg4 {[%clk 0:01:40]}  Ned5 {[%clk 0:01:34]} 24. Bf3 {[%clk 0:01:20]}  Rad8 {[%clk 0:01:24]} 25. Be4 {[%clk 0:01:20]}  Rf7 {[%clk 0:01:21]} 26. Bc1 {[%clk 0:01:14]}  Bf8 {[%clk 0:01:18]} 27. Nc4 {[%clk 0:01:14]}  b5 {[%clk 0:01:07]} 28. Nd2 {[%clk 0:01:14]}  Nc3 {[%clk 0:01:07]} 29. Nf3 {[%clk 0:00:56]}  Be7 {[%clk 0:00:58]} 30. Bd2 {[%clk 0:00:54]}  Nxe4 {[%clk 0:00:56]} 31. Rxe4 {[%clk 0:00:54]}  Rff8 {[%clk 0:00:52]} 32. Qc1 {[%clk 0:00:48]}  Ra8 {[%clk 0:00:50]} 33. Rxa8 {[%clk 0:00:46]}  Rxa8 {[%clk 0:00:50]} 34. Bxg5 {[%clk 0:00:40]}  fxg5 {[%clk 0:00:49]} 35. Nxg5+ {[%clk 0:00:41]}  Kg8 {[%clk 0:00:42]} 36. Ne6 {[%clk 0:00:38]}  Qa7 {[%clk 0:00:26]} 37. Qh6 {[%clk 0:00:36]}  Bf8 {[%clk 0:00:17]} 38. Rg4+ {[%clk 0:00:25]}  Kf7 {[%clk 0:00:17]} 39. Qg6+ {[%clk 0:00:19]}  Ke7 {[%clk 0:00:17]} 40. Qh7+ {[%clk 0:00:18]}  Kd6 {[%clk 0:00:17]} 41. Qg6 {[%clk 0:00:14]}  Kd5 {[%clk 0:00:10]} 42. Rxh4 {[%clk 0:00:08]}  Nxc2 {[%clk 0:00:09]} 43. Ng5 {[%clk 0:00:07]}  Qa6 {[%clk 0:00:09]} 44. Qf7+ {[%clk 0:00:06]}  Kd6 {[%clk 0:00:09]} 45. Ne4+ {[%clk 0:00:02]}  Kc6 {[%clk 0:00:09]} 46. Rg4 {[%clk 0:00:02]}  Rd8 {[%clk 0:00:05]} 47. Rg6+ {[%clk 0:00:02]}  Bd6 {[%clk 0:00:05]} 48. Rxd6+ {[%clk 0:00:03]}  Rxd6 {[%clk 0:00:05]} 49. Qe8+ {[%clk 0:00:04]}  Kb6 {[%clk 0:00:05]} 50. Nxd6 {[%clk 0:00:03]}  Ka5 {[%clk 0:00:05]} 51. Qd8+ {[%clk 0:00:04]}  Kb4 {[%clk 0:00:05]} 52. Nb7 {[%clk 0:00:04]}  Qxb7 {[%clk 0:00:03]} 53. Qd6 {[%clk 0:00:04]}  Qa7 {[%clk 0:00:02]} 54. Qxe5 {[%clk 0:00:04]}  Kxb3 {[%clk 0:00:02]} 55. Kh2 {[%clk 0:00:05]}  Kc3 {[%clk 0:00:02]} 56. f6 {[%clk 0:00:05]}  b4 {[%clk 0:00:02]} 57. f7 {[%clk 0:00:06]}  Qxf7 {[%clk 0:00:02]} 58. Qxc5+ {[%clk 0:00:05]}  Kxd3 {[%clk 0:00:01]} 59. Qf5+ {[%clk 0:00:05]} 1-0


[Site "https://www.chess.com"]